Workbook

Sheet formato pedido
E3: ´15 Noviembre/ 2024
D5: Total pedido c/iva | F5: =SUM(F7:F29595) -> 0
A6: Codigo | B6: Cantidad | C6: Descripcion | D6: Precio Lista s/IVA | E6: Precio Lista c/IVA | F6: Subtotal
A7: ADAQ218RH | C7: ALERON DEL AUDI Q2 18-20 C/HOYO P/SENSOR DER | D7: 4620 | E7: =D7*1.16 -> 5359.2 | F7: =IF((B7*E7)=0," ",(B7*E7)) -> 
A8: ADAQ218LH | C8: ALERON DEL AUDI Q2 18-20 C/HOYO P/SENSOR IZQ | D8: 4620 | E8: 5359.2
A9: ADAQ218R | C9: ALERON DEL AUDI Q2 18-20 S/HOYO P/SENSOR DER | D9: 4389 | E9: 5091.24
A10: ADAQ218L | C10: ALERON DEL AUDI Q2 18-20 S/HOYO P/SENSOR IZQ | D10: 4389 | E10: 5091.24
A11: ADAQ313R | C11: ALERON DEL AUDI Q3 13-17 S/HOYO P/SENS BBB3 DER | D11: 2730 | E11: 3166.8
A12: ADAQ313L | C12: ALERON DEL AUDI Q3 13-17 S/HOYO P/SENS BBB3 IZQ | D12: 2730 | E12: 3166.8
A13: ADAQ319RHS | C13: ALERON DEL AUDI Q3 19-20 C/HOYO P/SENSOR P/TIRON DER | D13: 4158 | E13: 4823.28
A14: ADAQ319LHS | C14: ALERON DEL AUDI Q3 19-20 C/HOYO P/SENSOR P/TIRON IZQ | D14: 4158 | E14: 4823.28
A15: ADAQ319RH | C15: ALERON DEL AUDI Q3 19-20 C/HOYO P/TIRON DER | D15: 4158 | E15: 4823.28
A16: ADAQ319LH | C16: ALERON DEL AUDI Q3 19-20 C/HOYO P/TIRON IZQ | D16: 4158 | E16: 4823.28
A17: ADAQ518SR | C17: ALERON DEL AUDI Q5 18-20 C/HOYO P/SENS DER | D17: 4066 | E17: 4716.56
A18: ADAQ518SL | C18: ALERON DEL AUDI Q5 18-20 C/HOYO P/SENS IZQ | D18: 4066 | E18: 4716.56
A19: ADAQ518R | C19: ALERON DEL AUDI Q5 18-20 S/HOYO P/SENS DER | D19: 4066 | E19: 4716.56
A20: ADAQ518L | C20: ALERON DEL AUDI Q5 18-20 S/HOYO P/SENS IZQ | D20: 4066 | E20: 4716.56
A21: ADCBL19R | C21: ALERON DEL BLAZER 19-21 922 DER | D21: 4620 | E21: 5359.2
A22: ADCBL19L | C22: ALERON DEL BLAZER 19-21 922 IZQ | D22: 4620 | E22: 5359.2
A23: ADCPU07CR15 | C23: ALERON DEL CHEV PU 07-13 1500 CROMADO P/FARO NIEBLA BBB3 DER | D23: 5800 | E23: 6728
A24: ADCPU07CL15 | C24: ALERON DEL CHEV PU 07-13 1500 CROMADO P/FARO NIEBLA BBB3 IZQ | D24: 5800 | E24: 6728
A25: ADCPU07CRF | C25: ALERON DEL CHEV PU 07-13 2500/ 3500 CROMADO P/FARO NIEBLA LINEA NUEVA BBB2 DER | D25: 3516 | E25: 4078.56
A26: ADCPU07CLF | C26: ALERON DEL CHEV PU 07-13 2500/ 3500 CROMADO P/FARO NIEBLA LINEA NUEVA BBB2 IZQ | D26: 3516 | E26: 4078.56
A27: ADCPU07R | C27: ALERON DEL CHEV PU 07-13 2500/ 3500 CROMADO S/FARO NIEBLA LINEA NUEVA DDM24 DER | D27: 6380 | E27: 7400.8
A28: ADCPU07L | C28: ALERON DEL CHEV PU 07-13 2500/ 3500 CROMADO S/FARO NIEBLA LINEA NUEVA DDM24 IZQ | D28: 6380 | E28: 7400.8
A29: ADCPU07FR | C29: ALERON DEL CHEV PU 07-13 P/FARO NIEBLA P/PINTAR DMV DER | D29: 746 | E29: 865.36
A30: ADCPU07FL | C30: ALERON DEL CHEV PU 07-13 P/FARO NIEBLA P/PINTAR DMV IZQ | D30: 746 | E30: 865.36
A31: ADCPU07CR | C31: ALERON DEL CHEV PU 07-13 S/FARO NIEBLA CHINO DER | D31: 746 | E31: 865.36
A32: ADCPU07CL | C32: ALERON DEL CHEV PU 07-13 S/FARO NIEBLA CHINO IZQ | D32: 746 | E32: 865.36
A33: ADCPU07PR | C33: ALERON DEL CHEV PU 07-13 S/FARO NIEBLA P/PINTAR DER | D33: 746 | E33: 865.36
A34: ADCPU07PL | C34: ALERON DEL CHEV PU 07-13 S/FARO NIEBLA P/PINTAR IZQ | D34: 746 | E34: 865.36
A35: ADCS1095R | C35: ALERON DEL S10/ BLAZER 95-97 DER | D35: 224 | E35: 259.84
A36: ADCS1095L | C36: ALERON DEL S10/ BLAZER 95-97 IZQ | D36: 224 | E36: 259.84
A37: ATCAD17R | C37: ALERON TRAS ACADIA 17-19 P/PINTAR SL/SLE/SLT/DENALI DER | D37: 6050 | E37: 7018
A38: ATCAD17L | C38: ALERON TRAS ACADIA 17-19 P/PINTAR SL/SLE/SLT/DENALI IZQ | D38: 6050 | E38: 7018
A39: ATCPU07CR | C39: ALERON TRAS CHEV PU 07-13 CROM S/SENS DMV DER | D39: 2920 | E39: 3387.2
A40: ATCPU07CL | C40: ALERON TRAS CHEV PU 07-13 CROM S/SENS DMV IZQ | D40: 2920 | E40: 3387.2
A41: ATCPU14R | C41: ALERON TRAS CHEV PU 14-18 1500 DER | D41: 1617 | E41: 1875.72
A42: ATCPU14L | C42: ALERON TRAS CHEV PU 14-18 1500 IZQ | D42: 1617 | E42: 1875.72
A43: ATCS1095R | C43: ALERON TRAS S10 95-97 DER | D43: 614 | E43: 712.24
A44: ATCS1095L | C44: ALERON TRAS S10 95-97 IZQ | D44: 614 | E44: 712.24
A45: ATCTO11R | C45: ALERON TRAS TORNADO 11-21 P/PINT NZL DER | D45: 940 | E45: 1090.4
A46: ATCTO11L | C46: ALERON TRAS TORNADO 11-21 P/PINT NZL IZQ | D46: 940 | E46: 1090.4
A47: ATCTR21R | C47: ALERON TRAS TRACKER 21-24 DER | D47: 2888 | E47: 3350.08
A48: ATCTR21L | C48: ALERON TRAS TRACKER 21-24 IZQ | D48: 2888 | E48: 3350.08
A49: ATCTA09R | C49: ALERON TRAS TRAVERSE 09-12 P/PINTAR ***0 DER | D49: 1982 | E49: 2299.12
A50: ATCTA09L | C50: ALERON TRAS TRAVERSE 09-12 P/PINTAR ***0 IZQ | D50: 1982 | E50: 2299.12
A51: ATCTA18R | C51: ALERON TRAS TRAVERSE 18-21 DER | D51: 4389 | E51: 5091.24
A52: ATCTA18L | C52: ALERON TRAS TRAVERSE 18-21 IZQ | D52: 4389 | E52: 5091.24
A53: ATCTX13R | C53: ALERON TRAS TRAX 13-16 627 DMV DER | D53: 1905 | E53: 2209.8
A54: ATCTX13L | C54: ALERON TRAS TRAX 13-16 627 DMV IZQ | D54: 1905 | E54: 2209.8
A55: ATDH10R | C55: ALERON TRAS H100 VAN 10-14 346 BBB DER | D55: 813 | E55: 943.08
A56: ATDH10L | C56: ALERON TRAS H100 VAN 10-14 346 BBB IZQ | D56: 813 | E56: 943.08
A57: ATDR70021SR | C57: ALERON TRAS RAM 700 21-24 C/SENS BZ DER | D57: 2079 | E57: 2411.64
A58: ATDR70021SL | C58: ALERON TRAS RAM 700 21-24 C/SENS BZ IZQ | D58: 2079 | E58: 2411.64
A59: ATDR70021R | C59: ALERON TRAS RAM 700 21-24 S/SENS BZ DER | D59: 2079 | E59: 2411.64
A60: ATDR70021L | C60: ALERON TRAS RAM 700 21-24 S/SENS BZ IZQ | D60: 2079 | E60: 2411.64
A61: ATRPM14R | C61: ALERON TRAS RAM PRO MASTER 14-18 / FIAT DUCATO/ PG MANAGER 15-17 C/REFLEJANTE DER | D61: 3003 | E61: 3483.48
A62: ATRPM14L | C62: ALERON TRAS RAM PRO MASTER 14-18 / FIAT DUCATO/ PG MANAGER 15-17 C/REFLEJANTE IZQ | D62: 3003 | E62: 3483.48
A63: ATRPM21R | C63: ALERON TRAS RAM PRO MASTER 21-23 C/REFLEJANTE DER | D63: 2310 | E63: 2679.6
A64: ATRPM21L | C64: ALERON TRAS RAM PRO MASTER 21-23 C/REFLEJANTE IZQ | D64: 2310 | E64: 2679.6
A65: ADFIDU15FRC | C65: ALERON DEL DUCATO 15-18 CORTO P/FARO NIEBLA MTP DER | D65: 1878 | E65: 2178.48
A66: ADFIDU15FLC | C66: ALERON DEL DUCATO 15-18 CORTO P/FARO NIEBLA MTP IZQ | D66: 1878 | E66: 2178.48
A67: ADFIDU15RC | C67: ALERON DEL DUCATO 15-18 CORTO S/FARO NIEBLA DER | D67: 1878 | E67: 2178.48
A68: ADFIDU15LC | C68: ALERON DEL DUCATO 15-18 CORTO S/FARO NIEBLA IZQ | D68: 1878 | E68: 2178.48
A69: ADFIDU15FRL | C69: ALERON DEL DUCATO 15-18 LARGO P/FARO NIEBLA MTP DER | D69: 2660 | E69: 3085.6
A70: ADFIDU15FLL | C70: ALERON DEL DUCATO 15-18 LARGO P/FARO NIEBLA MTP IZQ | D70: 2660 | E70: 3085.6
A71: ADFIDU15RL | C71: ALERON DEL DUCATO 15-18 LARGO S/FARO NIEBLA DER | D71: 2660 | E71: =D71*1.16 -> 3085.6 | F71: =IF((B71*E71)=0," ",(B71*E71)) -> 
A72: ADFIDU15LL | C72: ALERON DEL DUCATO 15-18 LARGO S/FARO NIEBLA IZQ | D72: 2660 | E72: 3085.6
A73: ADFEO18R | C73: ALERON DEL ECOSPORT 18-20 627 NZL DER | D73: 681 | E73: 789.96
A74: ADFEO18L | C74: ALERON DEL ECOSPORT 18-20 627 NZL IZQ | D74: 681 | E74: 789.96
A75: ADFPU15NFR | C75: ALERON DEL FORD PU 15-17 NEGRO C/HOYO P/FARO 627 NZL DER | D75: 2541 | E75: 2947.56
A76: ADFPU15NFL | C76: ALERON DEL FORD PU 15-17 NEGRO C/HOYO P/FARO 627 NZL IZQ | D76: 2541 | E76: 2947.56
A77: ADFKA02NR | C77: ALERON DEL KA 02-08 P/PINTAR 5662 AGT DMV DER | D77: 1296 | E77: 1503.36
A78: ADFKA02NL | C78: ALERON DEL KA 02-08 P/PINTAR 5662 AGT DMV IZQ | D78: 1296 | E78: 1503.36
A79: ADFTR07FL | C79: ALERON DEL TRANSIT 07-12 P/FARO NIEBLA ***5 IZQ FN2 | D79: 1210 | E79: 1403.6
A80: ADFTR07R | C80: ALERON DEL TRANSIT 07-12 S/FARO NIEBLA DER | D80: 1399 | E80: 1622.84
A81: ADFTR07L | C81: ALERON DEL TRANSIT 07-12 S/FARO NIEBLA IZQ | D81: 1399 | E81: 1622.84
A82: ATFBR21R | C82: ALERON TRAS BRONCO 21-24 BIG BEND/OUTER BANKS/BADLANDS DER | D82: 2772 | E82: 3215.52
A83: ATFBR21L | C83: ALERON TRAS BRONCO 21-24 BIG BEND/OUTER BANKS/BADLANDS IZQ | D83: 2772 | E83: 3215.52
A84: ATFCU01R | C84: ALERON TRAS COURIER 01-12 MX DMV DER | D84: 600 | E84: 696
A85: ATFCU01L | C85: ALERON TRAS COURIER 01-12 MX DMV IZQ | D85: 600 | E85: 696
A86: ATFEO13L | C86: ALERON TRAS ECOSPORT 13-16 627 BBB3 IZQ | D86: 1271 | E86: 1474.36
A87: ATFEO13R | C87: ALERON TRAS ECOSPORT 13-16 627 BBB3 DER | D87: 1271 | E87: 1474.36
A88: ATFEC13L | C88: ALERON TRAS ESCAPE 13-16 PAT USA 627 IZQ RVR | D88: 1653 | E88: 1917.48
A89: ATFEC13R | C89: ALERON TRAS ESCAPE 13-16 PAT USA 627 NZL DER RVR | D89: 1653 | E89: 1917.48
A90: ATFEC17R | C90: ALERON TRAS ESCAPE 17-19 627 DER | D90: 4129 | E90: 4789.64
A91: ATFEC17L | C91: ALERON TRAS ESCAPE 17-19 627 NZL IZQ | D91: 4129 | E91: 4789.64
A92: ATFEC20RH | C92: ALERON TRAS ESCAPE 20-22 C/HOYO P/SENSOR DER | D92: 3696 | E92: 4287.36
A93: ATFEC20LH | C93: ALERON TRAS ESCAPE 20-22 C/HOYO P/SENSOR IZQ | D93: 3696 | E93: 4287.36
A94: ATFEC20R | C94: ALERON TRAS ESCAPE 20-22 S/HOYO P/SENSOR DER | D94: 3696 | E94: 4287.36
A95: ATFEC20L | C95: ALERON TRAS ESCAPE 20-22 S/HOYO P/SENSOR IZQ | D95: 3696 | E95: 4287.36
A96: ATFEP07R | C96: ALERON TRAS EXPEDITION 07-16 C/HOYO P/MOLD BBB2 DER | D96: 4766 | E96: 5528.56
A97: ATFEP07L | C97: ALERON TRAS EXPEDITION 07-16 C/HOYO P/MOLD BBB2 IZQ | D97: 4766 | E97: 5528.56
A98: ATFEP07ER | C98: ALERON TRAS EXPEDITION 07-16 MAX/ EL C/HOYO P/MOLD BBB2 DER | D98: 4766 | E98: 5528.56
A99: ATFEP07EL | C99: ALERON TRAS EXPEDITION 07-16 MAX/ EL C/HOYO P/MOLD BBB2 IZQ | D99: 4766 | E99: 5528.56
A100: ATFEP07EMR | C100: ALERON TRAS EXPEDITION 07-16 MAX/ EL S/HOYO P/MOLD 776 BBB2 DER | D100: 4766 | E100: 5528.56
A101: ATFEP07EML | C101: ALERON TRAS EXPEDITION 07-16 MAX/ EL S/HOYO P/MOLD 776 BBB2 IZQ | D101: 4766 | E101: 5528.56
A102: ATFEP07MR | C102: ALERON TRAS EXPEDITION 07-16 S/HOYO P/MOLD BBB2 DER | D102: 4766 | E102: 5528.56
A103: ATFEP07ML | C103: ALERON TRAS EXPEDITION 07-16 S/HOYO P/MOLD BBB2 IZQ | D103: 4766 | E103: 5528.56
A104: ATFPU09C | C104: ALERON TRAS FORD PU 09-14 CROMADO S/HOYO P/SENS PAR G15 BBB2 | D104: 8696 | E104: 10087.36
A105: ATFPU09P | C105: ALERON TRAS FORD PU 09-14 P/PINTAR S/HOYO P/SENS PAR BBB2 | D105: 7500 | E105: 8700
A106: ATFKA02NR | C106: ALERON TRAS KA 02-08 NEGRO P/PINTAR 5662 DER | D106: 1296 | E106: 1503.36
A107: ATFKA02NL | C107: ALERON TRAS KA 02-08 NEGRO P/PINTAR 5662 IZQ | D107: 1296 | E107: 1503.36
A108: ATFTR15R | C108: ALERON TRAS TRANSIT 15-19 DER | D108: 2503 | E108: 2903.48
A109: ATFTR15L | C109: ALERON TRAS TRANSIT 15-19 IZQ | D109: 2503 | E109: 2903.48
A110: ATFTR20R | C110: ALERON TRAS TRANSIT 20-22 S/SENS DER | D110: 1155 | E110: 1339.8
A111: ATFTR20L | C111: ALERON TRAS TRANSIT 20-22 S/SENS IZQ | D111: 1155 | E111: 1339.8
A112: ATFPU15CC | C112: ALERON TRASERO FORD PU 15-20 CROMADOS C/HOYO P/SENS PAR MTP | D112: 8696 | E112: 10087.36
A113: ATFPU15PS | C113: ALERON TRASERO FORD PU 15-20 CROMADOS S/HOYO P/SENS PAR | D113: 8250 | E113: 9570
A114: ATFPU15PC | C114: ALERON TRASERO FORD PU 15-20 NEGRO C/HOYO P/SENS PAR | D114: 8696 | E114: 10087.36
A115: ATFPU15NS | C115: ALERON TRASERO FORD PU 15-20 NEGRO S/HOYO P/SENS PAR | D115: 8696 | E115: 10087.36
A116: ATFPU18PC | C116: ALERON TRASERO FORD PU 18-20 P/PINTAR C/HOYO P/SENS PAR 627 | D116: 7207 | E116: 8360.12
A117: ATFSD17CS | C117: ALERON TRASERO SUPER DUTY 17-19 CROM C/HOYO P/SENS PAR | D117: 8430 | E117: 9778.8
A118: ATFSD17C | C118: ALERON TRASERO SUPER DUTY 17-19 CROM S/HOYO P/SENS PAR | D118: 8430 | E118: 9778.8
A119: ATFSD17PS | C119: ALERON TRASERO SUPER DUTY 17-19 NEGROS C/HOYO P/SENS PAR | D119: 8158 | E119: 9463.28
A120: ATFSD17P | C120: ALERON TRASERO SUPER DUTY 17-19 NEGROS S/HOYO P/SENS PAR | D120: 8158 | E120: 9463.28
A121: ATHCR07R | C121: ALERON TRAS CRV 07-09 346 DER | D121: 1225 | E121: 1421
A122: ATHCR07L | C122: ALERON TRAS CRV 07-09 346 IZQ | D122: 1225 | E122: 1421
A123: ATHCR12R | C123: ALERON TRAS CRV 12-14 DER | D123: 796 | E123: 923.36
A124: ATHCR12L | C124: ALERON TRAS CRV 12-14 IZQ | D124: 796 | E124: 923.36
A125: ATHCR15R | C125: ALERON TRAS CRV 15-16 346 DER | D125: 1138 | E125: 1320.08
A126: ATHCR15L | C126: ALERON TRAS CRV 15-16 346 IZQ | D126: 1138 | E126: 1320.08
A127: ATHCR17R | C127: ALERON TRAS CRV 17-22 346 DER | D127: 2246 | E127: 2605.36
A128: ATHCR17L | C128: ALERON TRAS CRV 17-22 346 IZQ | D128: 2246 | E128: 2605.36
A129: ATHCR23R | C129: ALERON TRAS CRV 23-25 DER | D129: 3740 | E129: 4338.4
A130: ATHCR23L | C130: ALERON TRAS CRV 23-25 IZQ | D130: 3740 | E130: 4338.4
A131: ATHHR16R | C131: ALERON TRAS HRV 16-22 627 NZL DER | D131: 1733 | E131: 2010.28
A132: ATHHR16L | C132: ALERON TRAS HRV 16-22 627 NZL IZQ | D132: 1733 | E132: 2010.28
A133: ATHHR23R | C133: ALERON TRAS HRV 23-25 DER | D133: 2772 | E133: 3215.52
A134: ATHHR23L | C134: ALERON TRAS HRV 23-25 IZQ | D134: 2772 | E134: 3215.52
A135: ATJASE421R | C135: ALERON TRAS JAC SEI 4 PRO 21-25 NZL DER 241018 | D135: 3700 | E135: =D135*1.16 -> 4292 | F135: =IF((B135*E135)=0," ",(B135*E135)) -> 
A136: ATJASE421L | C136: ALERON TRAS JAC SEI 4 PRO 21-25 NZL IZQ 241018 | D136: 3700 | E136: =D136*1.16 -> 4292
A137: ADJCH97CR | C137: ALERON DEL CHEROKEE 97-01 CHINO DER | D137: 1236 | E137: =D137*1.16 -> 1433.76
A138: ADJCH97CL | C138: ALERON DEL CHEROKEE 97-01 CHINO IZQ | D138: 1236 | E138: 1433.76
A139: ATJCH14RS | C139: ALERON TRAS CHEROKEE 14-18 S/GUIAS DER | D139: 2772 | E139: 3215.52
A140: ATJCH14LS | C140: ALERON TRAS CHEROKEE 14-18 S/GUIAS IZQ | D140: 2772 | E140: 3215.52
A141: ATJCH19R | C141: ALERON TRAS CHEROKEE 19-20 C/GUIA DER | D141: 3401 | E141: 3945.16
A142: ATJCH19L | C142: ALERON TRAS CHEROKEE 19-20 C/GUIA IZQ | D142: 3401 | E142: 3945.16
A143: ATJCH84R | C143: ALERON TRAS CHEROKEE 84-90 DER | D143: 347 | E143: 402.52
A144: ATJCH84L | C144: ALERON TRAS CHEROKEE 84-90 IZQ | D144: 347 | E144: 402.52
A145: ATJCH97R | C145: ALERON TRAS CHEROKEE 97-01 BBB DER | D145: 882 | E145: 1023.12
A146: ATJRE15L | C146: ALERON TRAS RENEGADE 16 -18 288 IZQ | D146: 1214 | E146: 1408.24
A147: ATJRE15R | C147: ALERON TRAS RENEGADE 16-18 288 NZL DER | D147: 1214 | E147: 1408.24
A148: ATKSL16R | C148: ALERON TRAS SOUL 16/ USA 14-16 BBB3 DER | D148: 2844 | E148: 3299.04
A149: ATKSL16L | C149: ALERON TRAS SOUL 16/ USA 14-16 BBB3 IZQ | D149: 2844 | E149: 3299.04
A150: ATKSP16R | C150: ALERON TRAS SPORTAGE 16/ USA TYPE 11-16 BBB3 NZL DER | D150: 2275 | E150: 2639
A151: ATKSP16L | C151: ALERON TRAS SPORTAGE 16/ USA TYPE 11-16 BBB3 NZL IZQ | D151: 2275 | E151: 2639
A152: ATKSP23R | C152: ALERON TRAS SPORTAGE 23-24 DER | D152: 3696 | E152: 4287.36
A153: ATKSP23L | C153: ALERON TRAS SPORTAGE 23-24 IZQ | D153: 3696 | E153: 4287.36
A154: ADMPU86R | C154: ALERON DEL MAZDA PU 86-93 466 DER | D154: 462 | E154: =D154*1.16 -> 535.92
A155: ADMPU86L | C155: ALERON DEL MAZDA PU 86-93 466 IZQ | D155: 462 | E155: 535.92
A156: ATMC5023R | C156: ALERON TRAS MAZDA CX50 23-24 DER | D156: 1650 | E156: 1914
A157: ATMC5023L | C157: ALERON TRAS MAZDA CX50 23-24 IZQ | D157: 1650 | E157: 1914
A158: ATMBSP07R | C158: ALERON TRAS MBENZ SPRINTER 07-16/ CRAFTER 08-16 DER | D158: 1271 | E158: 1474.36
A159: ATMBSP07L | C159: ALERON TRAS MBENZ SPRINTER 07-16/ CRAFTER 08-16 IZQ | D159: 1271 | E159: 1474.36
A160: ATMBSP19R | C160: ALERON TRAS MBENZ SPRINTER 19-24 DER | D160: 1837 | E160: 2130.92
A161: ATMBSP19L | C161: ALERON TRAS MBENZ SPRINTER 19-24 IZQ | D161: 1837 | E161: 2130.92
A162: ADNA1081PR | C162: ALERON DEL DATSUN 81-84 4P PLASTICO MX DER | D162: 187 | E162: =D162*1.16 -> 216.92
A163: ADNA1081PL | C163: ALERON DEL DATSUN 81-84 4P PLASTICO MX IZQ | D163: 187 | E163: 216.92
A164: ADNPU81PR | C164: ALERON DEL DATSUN PU 720 81-83 PLASTICO MX DER | D164: 172 | E164: 199.52
A165: ADNPU81PL | C165: ALERON DEL DATSUN PU 720 81-83 PLASTICO MX IZQ | D165: 172 | E165: 199.52
A166: ADNPU84CR | C166: ALERON DEL NISSAN PU 720 84-91 CROM DER | D166: 377 | E166: 437.32
A167: ADNPU84CL | C167: ALERON DEL NISSAN PU 720 84-91 CROM IZQ | D167: 377 | E167: 437.32
A168: ADNPU84NR | C168: ALERON DEL NISSAN PU 720 84-91 NEGRO (METAL) DER | D168: 290 | E168: 336.4
A169: ADNPU84NL | C169: ALERON DEL NISSAN PU 720 84-91 NEGRO (METAL) IZQ | D169: 290 | E169: 336.4
A170: ADNPU84PR | C170: ALERON DEL NISSAN PU 720 84-91 NEGRO PLASTICO MX DER | D170: 200 | E170: 232
A171: ADNPU84PL | C171: ALERON DEL NISSAN PU 720 84-91 NEGRO PLASTICO MX IZQ | D171: 200 | E171: 232
A172: ADNPU92PR | C172: ALERON DEL NISSAN PU 720 92-93 LARGO PLASTICO MX DMV DER RMM | D172: 250 | E172: 290
A173: ADNPU92PL | C173: ALERON DEL NISSAN PU 720 92-93 LARGO PLASTICO MX DMV IZQ RMM | D173: 250 | E173: 290
A174: ADNPU86CAR | C174: ALERON DEL NISSAN PU D21 86-92 CROM LISO AMER DER | D174: 356 | E174: 412.96
A175: ADNPU86CAL | C175: ALERON DEL NISSAN PU D21 86-92 CROM LISO AMER NZL IZQ | D175: 356 | E175: 412.96
A176: ADNPU86PAR | C176: ALERON DEL NISSAN PU D21 86-92 NEGRO LISO AMER DER | D176: 347 | E176: 402.52
A177: ADNPU86PAL | C177: ALERON DEL NISSAN PU D21 86-92 NEGRO LISO AMER IZQ | D177: 347 | E177: 402.52
A178: ADNPU93CAR | C178: ALERON DEL NISSAN PU D21 93-97 CROM AMER DER 28507 | D178: 469 | E178: 544.04
A179: ADNPU93CAL | C179: ALERON DEL NISSAN PU D21 93-97 CROM AMER IZQ 28507 | D179: 469 | E179: 544.04
A180: ADNPU93NAR | C180: ALERON DEL NISSAN PU D21 93-97 NEGRO AMER DER | D180: 377 | E180: 437.32
A181: ADNPU94PR | C181: ALERON DEL NISSAN PU D21 94-07 PLASTICO MX DER 28610 | D181: 300 | E181: 348
A182: ADNPU94PL | C182: ALERON DEL NISSAN PU D21 94-07 PLASTICO MX IZQ 28610 | D182: 300 | E182: 348
A183: ADNPU94CR | C183: ALERON DEL NISSAN PU D21 94-08 CROM DER 28610 SUC2ABR26 ODC050 | D183: 525 | E183: 609
A184: ADNPU94CL | C184: ALERON DEL NISSAN PU D21 94-08 CROM IZQ 28604 | D184: 525 | E184: 609
A185: ADNPU94NR | C185: ALERON DEL NISSAN PU D21 94-08 NEGRO DMV DER | D185: 405 | E185: 469.8
A186: ADNPU94NL | C186: ALERON DEL NISSAN PU D21 94-08 NEGRO DMV IZQ | D186: 405 | E186: 469.8
A187: ADNPA97PR | C187: ALERON DEL PATHFINDER 97-98 S/MOLD P/PINTAR **** DER | D187: 112 | E187: 129.92
A188: ATNA1081PR | C188: ALERON TRAS DATSUN 81-84 4P PLASTICO MX DER | D188: 187 | E188: 216.92
A189: ATNA1081PL | C189: ALERON TRAS DATSUN 81-84 4P PLASTICO MX IZQ | D189: 187 | E189: 216.92
A190: ATNXT00R | C190: ALERON TRAS XTERRA 00-04 DER | D190: 1449 | E190: 1680.84
A191: ATNXT00L | C191: ALERON TRAS XTERRA 00-04 IZQ | D191: 1449 | E191: 1680.84
A192: ADP300818J | C192: ALERON DEL PEUGEOT 3008 18-21 C/HOYO SENSOR JUEGO | D192: 1617 | E192: 1875.72
A193: ADP300818JS | C193: ALERON DEL PEUGEOT 3008 18-21 S/HOYO SENSOR JUEGO 627 | D193: 1155 | E193: 1339.8
A194: ATPPA13CL | C194: ALERON TRAS PARTNER 13-19 1 PTA CHINO IZQ | D194: 1878 | E194: 2178.48
A195: ATPPA13CR | C195: ALERON TRAS PARTNER 13-19 1 PTA CHINO DER | D195: 1878 | E195: 2178.48
A196: ATPPA13C2R | C196: ALERON TRAS PARTNER 13-19 2 PTAS CHINO DER | D196: 1653 | E196: 1917.48
A197: ATPPA13C2L | C197: ALERON TRAS PARTNER 13-19 2 PTAS CHINO IZQ | D197: 1653 | E197: 1917.48
A198: ATPPA19CR | C198: ALERON TRAS PARTNER 19-22 1 PTA CHINO DER | D198: 1848 | E198: 2143.68
A199: ATPPA19CL | C199: ALERON TRAS PARTNER 19-22 1 PTA CHINO IZQ | D199: 1848 | E199: 2143.68 | F199: =IF((B199*E199)=0," ",(B199*E199)) -> 
A200: ATPPA19LR | C200: ALERON TRAS PARTNER 20-24 1 PTA LARGO S/HOYO P/MOLD DER | D200: 1617 | E200: 1875.72
A201: ATPPA19LL | C201: ALERON TRAS PARTNER 20-24 1 PTA LARGO S/HOYO P/MOLD IZQ | D201: 1617 | E201: 1875.72
A202: ATP200822SR | C202: ALERON TRAS PEUGEOT 2008 21-24 C/HOYO P/SENSOR DER | D202: 2310 | E202: 2679.6
A203: ATP200822SL | C203: ALERON TRAS PEUGEOT 2008 21-24 C/HOYO P/SENSOR IZQ | D203: 2310 | E203: 2679.6
... 4297 more rows
